bitfinex/quotes_ETHUSD_20230118
["timestamp","ask_amount","ask_price","bid_price","bid_amount"]
[1674015575623,0.1011005,1583.6,1583.5,35.58190328]
[1674015575836,0.1011005,1583.6,1583.5,36.90692029]
[1674015576051,0.1011005,1583.6,1583.5,36.90813628]
[1674015576390,0.1011005,1583.6,1583.5,35.91451807]
[1674015578600,0.1011005,1583.6,1583.5,36.9082078]
[1674015578761,0.1011005,1583.6,1583.5,35.58320065]
[1674015578973,0.1011005,1583.6,1583.5,36.90821766]
[1674015579447,0.1011005,1583.6,1583.5,35.91451807]
[1674015579596,0.1011005,1583.6,1583.5,36.90830936]
[1674015579807,0.1011005,1583.6,1583.5,32.85400202]
[1674015580268,0.1011005,1583.6,1583.5,33.51656505]
[1674015580706,0.1011005,1583.6,1583.5,33.51656783]
[1674015581014,0.1011005,1583.6,1583.5,32.85400202]
[1674015582973,0.1011005,1583.6,1583.5,33.18522774]
[1674015583192,0.1011005,1583.6,1583.5,38.40136822]
[1674015585429,0.1011005,1583.6,1583.5,38.40336822]
[1674015591690,0.1011005,1583.6,1583.5,40.05668792]
[1674015592013,0.1011005,1583.6,1583.5,44.01071888]
[1674015592373,0.1011005,1583.6,1583.5,40.05668792]
[1674015597187,0.1011005,1583.6,1583.5,39.36841264]
[1674015598668,0.1011005,1583.6,1583.5,46.43906767]
[1674015598669,5e-07,1583.6,1583.5,46.43906767]
[1674015598881,0.10356335,1583.7,1583.6,0.09358636]
[1674015599055,0.10356335,1583.7,1583.6,28.02749289]
[1674015599282,0.10356335,1583.7,1583.6,32.98862531]
[1674015599719,0.10356335,1583.7,1583.6,35.61826558]
[1674015600278,0.10356335,1583.7,1583.6,41.12888965]
[1674015600624,0.10356335,1583.7,1583.6,39.472879]
[1674015603466,0.10356335,1583.7,1583.6,37.17334193]
[1674015604552,0.10356335,1583.7,1583.6,38.49700573]
[1674015604783,0.10356335,1583.7,1583.6,37.17334193]
[1674015604996,0.10356335,1583.7,1583.6,38.4969956]
[1674015605611,0.10356335,1583.7,1583.6,36.84250171]
[1674015605823,0.10356335,1583.7,1583.6,24.91808126]
[1674015606132,0.10356335,1583.7,1583.6,24.25630767]
[1674015607805,0.10356335,1583.7,1583.6,24.30905595]
[1674015608025,0.10356335,1583.7,1583.6,24.97085684]
[1674015608214,0.10356335,1583.7,1583.6,24.30905595]
[1674015608692,0.10356335,1583.7,1583.6,23.97820483]
[1674015608855,0.10356335,1583.7,1583.6,24.97587109]
[1674015609076,0.10356335,1583.7,1583.6,23.98321223]
[1674015610453,0.10356335,1583.7,1583.6,23.32140449]
[1674015611028,0.10356335,1583.7,1583.6,23.98321223]
[1674015615371,0.10356335,1583.7,1583.6,28.10849671]
[1674015616256,0.10356335,1583.7,1583.6,23.98321223]
[1674015617046,0.10356335,1583.7,1583.6,28.26977029]
[1674015617418,0.10356335,1583.7,1583.6,29.26242915]
[1674015618157,0.10356335,1583.7,1583.6,26.14580508]
[1674015619501,0.10356335,1583.7,1583.6,25.50906335]
[1674015620620,0.10356335,1583.7,1583.6,29.75134123]
[1674015621309,0.05356335,1583.7,1583.6,29.75134123]
[1674015622360,0.05356335,1583.7,1583.6,28.55634123]
[1674015624941,0.05356335,1583.7,1583.6,29.88038413]
[1674015627045,0.05356335,1583.7,1583.6,28.55673046]
[1674015627927,0.05356335,1583.7,1583.6,24.31445258]
[1674015628082,0.05356335,1583.7,1583.6,24.97657288]
[1674015628502,0.05356335,1583.7,1583.6,24.31445258]
[1674015629047,0.05356335,1583.7,1583.6,24.97656695]
[1674015629487,0.05356335,1583.7,1583.6,24.31445258]
[1674015629817,0.05356335,1583.7,1583.6,28.43726938]
[1674015630033,0.05356335,1583.7,1583.6,24.31445258]
[1674015630177,0.05356335,1583.7,1583.6,23.98353574]
[1674015630513,0.05356335,1583.7,1583.6,20.32140449]
[1674015630868,0.05356335,1583.7,1583.6,20.22364924]
[1674015633060,0.91060765,1583.7,1583.6,20.22364924]
[1674015633869,0.91060765,1583.7,1583.6,19.56151799]
[1674015634946,2.32012475,1583.7,1583.6,6.93207799]
[1674015635161,2.34437424,1583.7,1583.6,6.93207799]
[1674015635710,2.34437424,1583.7,1583.6,6.46606204]
[1674015637247,2.34437424,1583.7,1583.6,6.93144461]
[1674015637442,2.34437424,1583.7,1583.6,6.46606204]
[1674015638194,2.57437424,1583.7,1583.6,0.15134204]
[1674015638412,2.57437424,1583.7,1583.6,6.46606204]
[1674015639483,0.91060765,1583.7,1583.6,19.56080109]
[1674015639874,0.91060765,1583.7,1583.6,20.22293234]
[1674015641423,0.91060765,1583.7,1583.6,19.56080109]
[1674015641639,0.91260765,1583.7,1583.6,19.55938101]
[1674015641904,0.91060765,1583.7,1583.6,19.56080109]
[1674015646969,0.91060765,1583.7,1583.6,13.24608109]
[1674015653807,0.90666654,1583.7,1583.6,13.90821234]
[1674015655280,0.90666654,1583.7,1583.6,20.22293234]
[1674015655439,0.90666654,1583.7,1583.6,22.97602238]
[1674015656117,0.90666654,1583.7,1583.6,22.31389113]
[1674015657960,0.90666654,1583.7,1583.6,22.97602238]
[1674015659805,0.90666654,1583.7,1583.6,16.66130238]
[1674015659974,0.90666654,1583.7,1583.6,13.24608109]
[1674015661695,0.90666654,1583.7,1583.6,20.22293234]
[1674015662579,0.90666654,1583.7,1583.6,13.24608109]
[1674015662917,0.90666654,1583.7,1583.6,19.56080109]
[1674015663845,0.90666654,1583.7,1583.6,20.22293234]
[1674015664294,0.90666654,1583.7,1583.6,19.56080109]
[1674015664724,0.90666654,1583.7,1583.6,20.22293234]
[1674015664941,0.90666654,1583.7,1583.6,23.05200403]
[1674015665319,0.90666654,1583.7,1583.6,22.95841767]
[1674015667659,0.90666654,1583.7,1583.6,23.95146576]
[1674015668257,0.90666654,1583.7,1583.6,22.95841767]
[1674015669564,0.90666654,1583.7,1583.6,23.95146576]
[1674015669792,0.90666654,1583.7,1583.6,22.95841767]
[1674015669940,0.90666654,1583.7,1583.6,20.12934598]
[1674015672137,0.90666654,1583.7,1583.6,21.12239407]
[1674015675303,0.90666654,1583.7,1583.6,20.12934598]
[1674015675777,0.90666654,1583.7,1583.6,19.46721473]
[1674015679187,0.90666654,1583.7,1583.6,20.12934598]
[1674015680277,0.90666654,1583.7,1583.6,19.46721473]
[1674015685613,0.90666654,1583.7,1583.6,20.12934598]
[1674015687445,0.90666654,1583.7,1583.6,19.46721473]
[1674015687810,0.90666654,1583.7,1583.6,19.46366263]
[1674015688262,5.3123136,1583.7,1583.6,0.05420358]
[1674015688491,5.5423136,1583.7,1583.6,0.05420358]
[1674015688700,6.83411723,1583.7,1583.6,0.05420358]
[1674015689196,6.89703436,1583.7,1583.6,0.0050074]
[1674015689732,7.88120703,1583.7,1583.6,0.0050074]
[1674015689955,6.89703436,1583.7,1583.6,0.0050074]
[1674015691229,8.39703436,1583.7,1583.6,0.0050074]
[1674015691602,6.89703436,1583.7,1583.6,0.0050074]
[1674015691812,6.92128385,1583.7,1583.6,0.0050074]
[1674015692021,6.92056276,1583.7,1583.6,0.0050074]
[1674015692652,8.42056276,1583.7,1583.6,0.0050074]
[1674015694182,6.92056276,1583.7,1583.6,0.0050074]
[1674015695484,5.62948022,1583.7,1583.6,0.0050074]
[1674015697097,5.62948022,1583.7,1583.4,12.63472358]
[1674015697318,5.10457209,1583.6,1583.4,12.63472358]
[1674015697639,3.11662407,1583.5,1583.4,12.63472358]
[1674015697848,3.34662407,1583.5,1583.4,12.63472358]
[1674015699314,2.19283316,1583.7,1583.4,18.95024358]
[1674015699491,3.34662407,1583.6,1583.4,18.95024358]
[1674015699919,0.96958367,1583.7,1583.4,21.47683194]
[1674015701599,0.96958367,1583.7,1583.4,22.23103429]
[1674015703422,0.96558367,1583.7,1583.4,22.23103429]
[1674015703586,0.90666654,1583.7,1583.4,22.23103429]
[1674015703796,0.90666654,1583.7,1583.4,18.95024358]
[1674015705063,0.90666654,1583.7,1583.4,19.70419577]
[1674015706887,0.90666654,1583.7,1583.5,1.194]
[1674015707061,0.90666654,1583.7,1583.6,12.62944]
[1674015707412,1.13666654,1583.7,1583.6,12.62944]
[1674015710462,1.13666654,1583.7,1583.6,12.67863618]
[1674015712648,1.13666654,1583.7,1583.6,19.45204256]
[1674015713478,1.13666654,1583.7,1583.6,18.99335618]
[1674015713727,1.13666654,1583.7,1583.6,19.45194756]
[1674015714489,0.90666654,1583.7,1583.6,23.44388669]
[1674015714645,0.90666654,1583.7,1583.6,24.64288669]
[1674015715302,0.90666654,1583.7,1583.6,25.39683888]
[1674015719373,0.90666654,1583.7,1583.6,24.73470763]
[1674015720528,0.90409513,1583.7,1583.6,24.73470763]
[1674015721060,0.90409513,1583.7,1583.6,23.98075544]
[1674015721732,0.90409513,1583.7,1583.6,23.98030633]
[1674015722370,0.90409513,1583.7,1583.6,21.39135618]
[1674015722549,0.90409513,1583.7,1583.6,18.99335618]
[1674015723412,0.90409513,1583.7,1583.6,18.94335618]
[1674015728485,1.13409513,1583.7,1583.6,12.62863618]
[1674015730335,1.13409513,1583.7,1583.6,18.94335618]
[1674015730672,1.13409513,1583.7,1583.6,12.62863618]
[1674015730843,1.25786098,1583.7,1583.6,12.62863618]
[1674015732221,1.13409513,1583.7,1583.6,12.62863618]
[1674015735149,1.13409513,1583.7,1583.6,6.31391618]
[1674015736304,4.2507192,1583.7,1583.6,6.31391618]
[1674015737386,4.2507192,1583.7,1583.6,0.04919618]
[1674015741885,4.27496869,1583.7,1583.6,0.04919618]
[1674015742103,4.71282189,1583.7,1583.6,0.04919618]
[1674015745168,4.71282189,1583.7,1583.5,12.67900618]
[1674015745368,3.34662407,1583.6,1583.5,12.67900618]
[1674015745578,3.34662407,1583.6,1583.5,13.13767595]
[1674015748501,3.34662407,1583.6,1583.5,19.45279595]
[1674015748711,0.92834462,1583.7,1583.5,19.45279595]
[1674015748963,0.90409513,1583.7,1583.5,18.99412618]
[1674015749156,0.90163859,1583.7,1583.6,13.08816276]
[1674015749381,0.90163859,1583.7,1583.6,19.40288276]
[1674015751021,0.90163859,1583.7,1583.6,19.40281955]
[1674015752646,0.90163859,1583.7,1583.6,19.45201573]
[1674015755700,1.13163859,1583.7,1583.6,12.67863618]
[1674015756320,1.13163859,1583.7,1583.6,0.04919618]
[1674015756321,4.37178285,1583.7,1583.6,0.04919618]
[1674015757069,4.37178285,1583.7,1583.6,6.36391618]
[1674015757323,4.24826266,1583.7,1583.6,12.67863618]
[1674015758171,4.24826266,1583.7,1583.6,6.36391618]
[1674015760637,4.24826266,1583.7,1583.6,0.04919618]
[1674015761700,4.24826266,1583.7,1583.5,12.67886618]
[1674015761910,0.23,1583.6,1583.5,12.67886618]
[1674015762214,0.23,1583.6,1583.5,13.13768405]
[1674015767012,0.23,1583.6,1583.5,12.67886618]
[1674015770980,0.23,1583.6,1583.5,12.67645774]
[1674015776146,0.23,1583.6,1583.5,13.13522391]
[1674015776336,0.23,1583.6,1583.5,12.67645774]
[1674015778773,0.23,1583.6,1583.5,13.13511084]
[1674015779041,0.23,1583.6,1583.5,19.45023084]
[1674015780373,0.23,1583.6,1583.5,20.11236209]
[1674015780701,0.23,1583.6,1583.5,22.41829038]
[1674015780838,0.90163859,1583.7,1583.5,22.41829038]
[1674015781187,0.90163859,1583.7,1583.6,20.5968131]
[1674015784206,0.90163859,1583.7,1583.6,22.45694435]
[1674015784413,0.90163859,1583.7,1583.6,26.1319734]
[1674015784620,0.90163859,1583.7,1583.6,29.88684615]
[1674015785630,0.90163859,1583.7,1583.6,30.21745173]
[1674015785847,0.90163859,1583.7,1583.6,31.20999728]
[1674015785984,0.6478962,1583.7,1583.6,31.20999728]
[1674015786200,0.11764408,1583.9,1583.7,2.70804665]
[1674015786425,0.11764408,1583.9,1583.8,30.30835806]
[1674015786662,0.11764408,1583.9,1583.8,50.25125143]
[1674015787713,0.11764408,1583.9,1583.8,50.5817486]
[1674015788282,0.11764408,1583.9,1583.8,51.24259196]
[1674015788452,0.11764408,1583.9,1583.8,50.25125387]
[1674015788663,0.11764408,1583.9,1583.8,50.8879956]
[1674015789856,0.11764408,1583.9,1583.8,53.2789956]
[1674015791589,0.11764408,1583.9,1583.8,57.21932372]
[1674015791804,0.11764408,1583.9,1583.8,58.40732372]
[1674015792682,4.08e-06,1583.9,1583.8,58.40732372]
[1674015793005,0.11764408,1584.1,1583.8,59.39866181]
[1674015793161,0.11764408,1584.1,1584.0,27.64552]
[1674015793372,0.11764408,1584.1,1584.0,30.64552]
[1674015793581,0.11764408,1584.1,1584.0,30.64952]
[1674015793847,0.11764408,1584.1,1584.0,30.69471618]
[1674015794102,0.11764408,1584.1,1584.0,39.40081618]
[1674015794282,0.11764408,1584.1,1584.0,44.57162615]
[1674015794428,4.08e-06,1584.1,1584.0,49.04738849]
[1674015794746,0.0056474,1584.3,1584.2,25.24932]
[1674015794954,0.0056474,1584.3,1584.2,30.64632]
[1674015795165,0.0056474,1584.3,1584.2,35.50872429]
[1674015797074,0.0056474,1584.3,1584.2,34.30972429]
[1674015797908,0.0056474,1584.3,1584.2,34.35892047]
[1674015798846,0.0056474,1584.3,1584.2,39.49024859]
[1674015799588,0.0056474,1584.3,1584.2,40.03216135]
[1674015800007,0.0056474,1584.3,1584.2,40.03216452]
[1674015800460,0.0056474,1584.3,1584.2,48.59506452]
[1674015800677,0.0056474,1584.3,1584.2,47.95832279]
[1674015800873,0.0056474,1584.3,1584.2,48.59461795]
[1674015801085,0.0056474,1584.3,1584.2,48.05314859]
[1674015801275,0.12938309,1584.4,1584.3,1.5]
[1674015801649,0.12938309,1584.4,1584.3,29.11459487]
[1674015804991,0.12938309,1584.4,1584.3,26.41559487]
[1674015805574,0.12938309,1584.4,1584.3,26.46479105]
[1674015808612,0.12938309,1584.4,1584.3,25.82804932]
[1674015808825,0.12584409,1584.4,1584.3,26.46479105]
[1674015810616,0.12584409,1584.4,1584.3,25.82804932]
[1674015814033,0.12584409,1584.4,1584.3,24.63404932]
[1674015814224,0.12584409,1584.4,1584.3,21.98498618]
[1674015814435,0.12584409,1584.4,1584.3,23.81772791]
[1674015816692,0.12584409,1584.4,1584.3,23.18098618]
[1674015816827,0.12584409,1584.4,1584.3,24.36004379]
[1674015817032,0.12584409,1584.4,1584.3,23.81772791]
[1674015817250,0.12584409,1584.4,1584.3,28.22868996]
[1674015818747,0.12584409,1584.4,1584.3,29.58736784]
[1674015819129,0.12584409,1584.4,1584.3,28.77147315]
[1674015819550,0.12584409,1584.4,1584.3,33.52768148]
[1674015819809,0.12584409,1584.4,1584.3,29.58735336]
[1674015820493,0.12584409,1584.4,1584.3,30.77835336]
[1674015820723,0.00026474,1584.4,1584.3,31.43919672]
[1674015820913,0.00026474,1584.4,1584.3,30.77835336]
[1674015821125,0.00026474,1584.4,1584.3,35.37952484]
[1674015821772,0.00026474,1584.4,1584.3,31.43919672]
[1674015822183,0.00026474,1584.4,1584.3,32.43053481]
[1674015822856,0.00026474,1584.4,1584.3,31.43919672]
[1674015823768,0.00026474,1584.4,1584.3,32.43053481]
[1674015824391,0.00026474,1584.4,1584.3,31.76969145]
[1674015825648,0.00026474,1584.4,1584.3,12.83390145]
[1674015825862,0.00026474,1584.4,1584.3,30.95381124]
[1674015826189,0.00026474,1584.4,1584.3,31.76969145]
[1674015826593,0.00026474,1584.4,1584.3,33.09291175]
[1674015827383,0.00026474,1584.4,1584.3,31.76969145]
[1674015828271,0.00026474,1584.4,1584.3,33.09291175]
[1674015828514,0.00026474,1584.4,1584.3,40.81032199]
[1674015829638,0.00026474,1584.4,1584.3,39.15629661]
[1674015830101,0.00026474,1584.4,1584.3,40.81032199]
[1674015830426,0.00026474,1584.4,1584.3,50.16233093]
[1674015831635,0.14149743,1584.7,1584.4,3.62573526]
[1674015831845,0.14149743,1584.7,1584.4,43.06424315]
[1674015832159,0.14149743,1584.7,1584.4,49.45231751]
[1674015832370,0.14149743,1584.7,1584.4,48.46115676]
[1674015833246,0.14149743,1584.7,1584.4,52.40148488]
[1674015833439,0.14149743,1584.7,1584.4,48.46115676]
[1674015834224,0.14149743,1584.7,1584.4,50.11518214]
[1674015834596,0.14149743,1584.7,1584.4,54.05551026]
[1674015835135,9.26e-06,1584.5,1584.4,52.73401458]
[1674015835318,0.14149743,1584.7,1584.4,52.73401458]
[1674015835529,0.14149743,1584.7,1584.6,2.16126727]
[1674015835847,0.14149743,1584.7,1584.6,30.96775219]
[1674015836089,0.14149743,1584.7,1584.6,34.7836324]
[1674015840803,0.14149743,1584.7,1584.6,34.83282858]
[1674015842017,0.14149743,1584.7,1584.6,33.33282858]
[1674015842168,0.14149743,1584.7,1584.6,34.60741795]
[1674015842380,0.14149743,1584.7,1584.6,30.28756131]
[1674015842690,0.14149743,1584.7,1584.6,29.65081958]
[1674015844328,0.14149743,1584.7,1584.6,28.83493937]
[1674015845420,0.14149743,1584.7,1584.6,18.98141618]
[1674015845421,0.16574692,1584.7,1584.6,18.98141618]
[1674015845859,0.16574692,1584.7,1584.6,12.67067618]
[1674015846089,1.48922161,1584.7,1584.6,12.67067618]
[1674015847119,4.60584568,1584.7,1584.6,6.35993618]
[1674015847353,4.83584568,1584.7,1584.6,0.04919618]
[1674015847527,6.03484568,1584.7,1584.6,0.04919618]
[1674015853318,28.25943725,1584.7,1584.6,0.04919618]
[1674015853542,35.70468601,1584.7,1584.6,0.04919618]
[1674015853978,36.36550196,1584.7,1584.6,0.04919618]
[1674015854304,35.70468601,1584.7,1584.6,0.04919618]
[1674015854474,35.38090204,1584.7,1584.6,0.04919618]
[1674015854693,21.06350015,1584.7,1584.6,0.04919618]
[1674015855617,14.75716015,1584.7,1584.6,0.04519618]
[1674015855833,13.60618568,1584.7,1584.4,0.00173526]
[1674015856071,2.374,1584.5,1584.4,0.00173526]
[1674015856371,5.49062407,1584.5,1584.4,6.31324526]
[1674015856568,5.72062407,1584.5,1584.4,6.31324526]
[1674015857205,4.53362407,1584.5,1584.4,6.31324526]
[1674015858037,4.53362407,1584.5,1584.4,12.62477526]
[1674015858038,1.187,1584.5,1584.4,12.62477526]
[1674015858260,1.194,1584.6,1584.4,12.62477526]
[1674015858482,4.31062407,1584.6,1584.4,12.62477526]
[1674015859503,0.23,1584.5,1584.4,12.62477526]
[1674015862606,0.23,1584.5,1584.4,18.93630526]
[1674015862779,0.23,1584.6,1584.4,18.93630526]
[1674015864267,0.23,1584.6,1584.4,18.98550144]
[1674015866011,0.22608855,1584.6,1584.4,18.98550144]
[1674015867228,0.22608855,1584.6,1584.4,21.51524058]
[1674015869606,0.16574692,1584.7,1584.4,21.51524058]
[1674015869607,0.14149743,1584.7,1584.4,22.32958183]
[1674015870888,0.14149743,1584.7,1584.5,0.5397141]
[1674015871058,0.14149743,1584.7,1584.6,18.93222]
[1674015871269,0.14149743,1584.7,1584.6,18.98141618]
[1674015871479,0.14149743,1584.7,1584.6,21.5106448]
[1674015874535,0.14149743,1584.7,1584.6,18.98141618]
[1674015878969,0.04149743,1584.7,1584.6,18.98141618]
[1674015883094,0.17149743,1584.8,1584.6,18.98141618]
[1674015883481,0.17149743,1584.8,1584.6,12.67067618]
[1674015883726,3.2881215,1584.8,1584.6,6.35993618]
[1674015883936,1.75981215,1584.7,1584.6,6.35993618]
[1674015884147,1.75981215,1584.7,1584.6,0.04919618]
[1674015884362,1.75981215,1584.7,1584.6,0.04719618]
[1674015885211,1.98981215,1584.7,1584.6,0.04719618]
[1674015885399,0.55881215,1584.7,1584.6,0.04719618]
[1674015885594,3.67543622,1584.7,1584.6,0.04719618]
[1674015885801,5.10643622,1584.7,1584.6,0.04719618]
[1674015886993,6.31988548,1584.7,1584.6,0.04719618]
[1674015887321,21.35573815,1584.7,1584.6,0.04719618]
[1674015887531,19.92473815,1584.7,1584.6,0.04719618]
[1674015887746,20.08824188,1584.7,1584.6,0.04719618]
[1674015888564,1.431,1584.6,1584.2,12.67361618]
[1674015888791,4.92072407,1584.5,1584.2,12.67361618]
[1674015888999,3.11662407,1584.4,1584.2,12.67361618]
[1674015889177,0.23,1584.3,1584.2,12.67361618]
[1674015891487,0.23,1584.3,1584.2,13.2176573]
[1674015892536,0.23,1584.3,1584.2,13.21756711]
[1674015893782,0.23,1584.3,1584.2,13.21757215]
[1674015900358,0.23,1584.3,1584.2,12.67361618]
[1674015901186,0.23,1584.3,1584.2,19.52991053]
[1674015902963,0.09024949,1584.5,1584.2,22.36159218]
[1674015903174,3.18262407,1584.5,1584.2,21.81762783]
[1674015903383,3.18262407,1584.5,1584.3,0.54394095]
[1674015903670,3.18262407,1584.5,1584.4,12.62306]
[1674015904224,3.41262407,1584.5,1584.4,12.62306]
[1674015905297,3.41059784,1584.5,1584.4,12.62306]
[1674015908788,3.34662407,1584.5,1584.4,12.67225618]
[1674015913319,3.34662407,1584.5,1584.4,6.36072618]
[1674015913475,3.68788385,1584.5,1584.4,0.04919618]
[1674015915513,5.18788385,1584.5,1584.4,0.04919618]
[1674015915733,3.68788385,1584.5,1584.4,0.04919618]
[1674015917904,3.68788385,1584.5,1584.2,32.72197618]
[1674015918115,0.23,1584.4,1584.2,32.72197618]
[1674015920097,0.23,1584.4,1584.3,0.54428202]
[1674015920307,0.23,1584.4,1584.3,6.31193]
[1674015921320,0.23,1584.4,1584.3,6.85633909]
[1674015921882,0.23,1584.4,1584.3,6.31193]
[1674015923145,0.23,1584.4,1584.3,6.36112618]
[1674015926346,0.23,1584.4,1584.3,6.90560409]
[1674015926719,0.23,1584.4,1584.3,6.36112618]
[1674015926923,0.23,1584.4,1584.3,6.90564979]
[1674015927249,0.23,1584.4,1584.3,6.90564763]
[1674015927451,0.23,1584.4,1584.3,7.72463761]
[1674015927661,0.23,1584.4,1584.3,6.90564763]
[1674015928770,0.23,1584.4,1584.3,7.72464218]
[1674015933088,1.09994801,1584.4,1584.3,7.72464218]
[1674015934703,1.09994801,1584.4,1584.3,6.90564763]
[1674015935232,1.09994801,1584.4,1584.3,7.7246565]
[1674015940491,1.09994801,1584.4,1584.3,14.0365865]
[1674015942073,1.09994801,1584.4,1584.3,21.00978377]
[1674015942280,1.09994801,1584.4,1584.3,25.84598324]
[1674015942499,0.86994801,1584.4,1584.3,25.84598324]
[1674015943396,0.86994801,1584.4,1584.3,25.85163064]
[1674015944707,1.09994801,1584.4,1584.3,14.70350117]
[1674015944919,1.09994801,1584.4,1584.3,13.22322503]
[1674015945750,1.09994801,1584.4,1584.3,12.67870358]
[1674015947040,1.09994801,1584.4,1584.3,6.36677358]
[1674015947255,1.09994801,1584.4,1584.3,6.91129631]
[1674015947862,1.09994801,1584.4,1584.3,7.73028211]
[1674015948077,1.09994801,1584.4,1584.3,7.73028358]
[1674015948391,1.09994801,1584.4,1584.3,6.91129631]
[1674015948607,1.09994801,1584.4,1584.3,7.73029261]
[1674015949389,1.09994801,1584.4,1584.3,21.01541988]
[1674015950058,1.09994801,1584.4,1584.3,25.85217796]
[1674015951318,0.86994801,1584.4,1584.3,25.85217796]
[1674015954258,0.86994801,1584.4,1584.3,26.18281159]
[1674015954937,0.8677841,1584.4,1584.3,35.10779873]
[1674015955151,0.00262179,1584.4,1584.3,33.78526419]
[1674015955417,0.00262179,1584.4,1584.3,34.42200592]
[1674015956514,0.00262179,1584.4,1584.3,35.7450281]
[1674015956967,0.00262179,1584.4,1584.3,29.81998404]
[1674015957195,0.00262179,1584.4,1584.3,29.18324231]
[1674015959263,0.00262179,1584.4,1584.3,29.84462828]
[1674015959883,0.00262179,1584.4,1584.3,28.85229666]
[1674015962643,0.00262179,1584.4,1584.3,29.84462828]
[1674015962867,0.00262179,1584.4,1584.3,28.85229666]
[1674015963191,0.00262179,1584.4,1584.3,29.84462828]
[1674015963820,0.00262179,1584.4,1584.3,29.18324231]
[1674015963976,0.00262179,1584.4,1584.3,29.84452068]
[1674015964189,0.00262179,1584.4,1584.3,28.85218906]
[1674015964511,0.00262179,1584.4,1584.3,29.84452068]
[1674015965455,0.00262179,1584.4,1584.3,29.18324231]
[1674015965925,0.00262179,1584.4,1584.3,29.84452436]
[1674015966304,0.00262179,1584.4,1584.3,29.18324231]
[1674015966508,0.00262179,1584.4,1584.3,29.84450377]
[1674015966970,0.00262179,1584.4,1584.3,29.18324231]
[1674015975695,0.00262179,1584.4,1584.3,28.85217603]
[1674015975911,1.44924949,1584.8,1584.4,0.00125513]
[1674015976068,0.23,1584.7,1584.5,6.31105]
[1674015976433,3.11662407,1584.6,1584.5,6.31105]
[1674015976643,3.34662407,1584.6,1584.5,6.31105]
[1674015976959,3.37087356,1584.6,1584.4,0.00125513]
[1674015977267,4.77162407,1584.5,1584.4,0.00125513]
[1674015977441,5.39431143,1584.5,1584.4,0.00125513]
[1674015981110,3.96931143,1584.5,1584.4,0.00125513]
[1674015981582,3.34662407,1584.5,1584.4,6.31278513]
[1674015989252,0.23,1584.5,1584.4,13.14278124]
[1674015989460,0.23,1584.5,1584.4,19.45431124]
[1674015991464,0.23,1584.5,1584.4,19.50350742]
[1674015991674,0.23,1584.5,1584.4,22.33083973]
[1674015995988,0.23,1584.5,1584.4,22.99210507]
[1674015996738,17.03837377,1584.8,1584.4,22.99210507]
[1674015996992,3.34662407,1584.7,1584.5,0.51846611]
[1674015997205,3.34662407,1584.7,1584.6,12.62148]
[1674015997719,3.34374226,1584.7,1584.6,12.62148]
[1674015999820,0.23,1584.7,1584.6,18.93222]
[1674016000196,0.23,1584.7,1584.6,20.90534197]
[1674016001973,3.34662407,1584.7,1584.6,6.31074]
[1674016004927,3.34662407,1584.7,1584.6,6.30817901]
[1674016006432,3.34662407,1584.7,1584.6,12.61891901]
[1674016008192,0.23,1584.7,1584.6,18.92965901]
[1674016008394,0.23,1584.7,1584.6,20.90307469]
[1674016011495,0.23,1584.7,1584.6,20.95227087]
[1674016012089,0.25424949,1584.8,1584.6,20.95227087]
[1674016012301,3.37087356,1584.8,1584.6,20.95227087]
[1674016012873,0.25424949,1584.8,1584.6,20.95227087]
[1674016013028,3.37087356,1584.8,1584.6,18.97885519]
[1674016018586,3.11662407,1584.7,1584.6,6.35737519]
[1674016018853,3.34662407,1584.7,1584.6,6.35737519]
[1674016019239,3.34662407,1584.7,1584.6,0.04919618]
[1674016022800,2.91150937,1584.9,1584.6,20.03041618]
[1674016023011,3.11662407,1584.8,1584.6,6.35993618]
[1674016023277,3.11662407,1584.7,1584.6,0.04919618]
[1674016024222,12.83824892,1584.7,1584.6,0.04919618]
[1674016024438,20.88208512,1584.7,1584.6,0.04919618]
[1674016024764,21.72345961,1584.7,1584.6,0.04919618]
[1674016025273,22.3853169,1584.7,1584.6,0.04919618]
[1674016025642,22.45129067,1584.7,1584.5,0.0056474]
[1674016025903,5.73462407,1584.6,1584.5,0.0056474]
[1674016026118,9.30285976,1584.6,1584.5,0.0056474]
[1674016026477,8.75115288,1584.6,1584.5,0.0056474]
[1674016026686,8.08929559,1584.6,1584.5,0.0056474]
[1674016027332,5.75887356,1584.6,1584.5,0.0056474]
[1674016029629,4.56887356,1584.6,1584.5,0.0056474]
[1674016030529,3.11662407,1584.6,1584.5,6.3167774]
[1674016030855,3.11662407,1584.6,1584.5,18.9390374]
[1674016031014,0.06597377,1584.7,1584.5,18.9390374]
[1674016031222,3.18259784,1584.7,1584.5,21.46421765]
[1674016031432,0.06597377,1584.7,1584.5,22.26373916]
[1674016032267,0.06597377,1584.7,1584.5,21.46421765]
[1674016032681,0.23,1584.6,1584.5,21.46421765]
[1674016032892,0.23,1584.6,1584.5,21.98254939]
[1674016033348,0.23,1584.6,1584.5,22.78159772]
[1674016033635,0.23,1584.6,1584.5,22.8307939]
[1674016038531,0.13,1584.6,1584.5,22.03174557]
[1674016040580,0.13,1584.6,1584.5,22.83055598]
[1674016041677,0.13,1584.6,1584.5,22.03174557]
[1674016042259,0.13,1584.6,1584.5,21.51341383]
[1674016042470,0.23,1584.7,1584.5,21.51341383]
[1674016042841,0.23,1584.8,1584.5,21.51341383]
[1674016042998,3.34662407,1584.8,1584.5,21.51341383]
[1674016043483,3.11662407,1584.7,1584.5,18.98823358]
[1674016043693,0.23,1584.6,1584.5,18.98823358]
[1674016044975,0.23,1584.6,1584.5,19.50638912]
[1674016045123,0.23,1584.6,1584.5,20.30511168]
[1674016045654,0.14529643,1584.9,1584.5,23.37970864]
[1674016045863,0.14529643,1584.9,1584.6,2.8561264]
[1674016046093,0.14529643,1584.9,1584.7,18.93102]
[1674016046650,0.14529643,1584.9,1584.7,18.98021618]
[1674016047219,0.14529643,1584.9,1584.7,19.77893874]
[1674016047393,0.14529643,1584.9,1584.7,18.98021618]
[1674016047549,0.14529643,1584.9,1584.8,1.89802162]
[1674016047914,0.37529643,1584.9,1584.8,20.82784162]
[1674016050693,0.37529643,1584.9,1584.8,20.8770378]
[1674016054531,0.14529643,1584.9,1584.8,20.8770378]
[1674016059416,0.14193649,1584.9,1584.8,20.8770378]
[1674016064687,0.14193649,1584.9,1584.8,20.8826852]
[1674016068668,0.14193649,1584.9,1584.8,22.3136852]
[1674016069536,0.14193649,1584.9,1584.8,22.83015547]
[1674016070137,0.14193649,1584.9,1584.8,23.62647895]
[1674016070347,0.14193649,1584.9,1584.8,22.83015547]
[1674016070861,0.14193649,1584.9,1584.8,22.3136852]
[1674016071075,0.14193649,1584.9,1584.8,22.83012535]
[1674016072281,0.14193649,1584.9,1584.8,23.62647477]
[1674016073073,0.14193649,1584.9,1584.8,24.28774011]
[1674016073530,0.14193649,1584.9,1584.8,32.04847477]
[1674016075678,0.14193649,1584.9,1584.8,32.70974011]
[1674016076832,0.14193649,1584.9,1584.8,36.5731378]